bitfinex/quotes_BTCUSD_20240821
["timestamp","ask_amount","ask_price","bid_price","bid_amount"]
[1724274594507,0.02765823,61103.0,61098.0,0.16367]
[1724274594728,0.02665823,61103.0,61099.0,0.163668]
[1724274595411,0.02665823,61103.0,61102.0,0.490981]
[1724274595412,0.001,61103.0,61102.0,0.490981]
[1724274595623,0.002,61103.0,61102.0,0.490981]
[1724274595833,0.001,61103.0,61102.0,0.490981]
[1724274596044,0.163653,61105.0,61101.0,0.163663]
[1724274596252,0.02565917,61108.0,61104.0,0.163655]
[1724274596485,0.18930417,61108.0,61104.0,0.163655]
[1724274596698,0.18930417,61108.0,61102.0,0.163658]
[1724274596919,0.18930417,61108.0,61103.0,0.163657]
[1724274597130,0.18930417,61108.0,61104.0,0.163654]
[1724274598186,0.02565917,61108.0,61105.0,0.163651]
[1724274598563,0.02665917,61108.0,61105.0,0.163651]
[1724274599423,0.163648,61107.0,61103.0,0.163657]
[1724274599785,0.19030417,61108.0,61104.0,0.163654]
[1724274599987,0.18930417,61108.0,61104.0,0.163654]
[1724274600409,0.163648,61107.0,61101.0,0.327326]
[1724274600608,0.163648,61107.0,61095.0,0.327358]
[1724274600609,0.163648,61107.0,61103.0,0.163656]
[1724274601207,0.163648,61107.0,61099.0,0.327336]
[1724274601208,0.163658,61103.0,61099.0,0.163667]
[1724274602692,0.02565917,61108.0,61092.0,0.32737]
[1724274602906,0.18930417,61108.0,61104.0,0.163653]
[1724274603344,0.18930417,61108.0,61102.0,0.16366]
[1724274603345,0.16365,61106.0,61102.0,0.16366]
[1724274603758,0.18930417,61108.0,61104.0,0.163654]
[1724274603969,0.19030417,61108.0,61104.0,0.163654]
[1724274604180,0.163647,61107.0,61103.0,0.163657]
[1724274604385,0.19130317,61108.0,61104.0,0.163654]
[1724274604829,0.02765917,61108.0,61107.0,0.490941]
[1724274605026,0.02765917,61108.0,61107.0,0.818235]
[1724274605239,0.02565917,61108.0,61097.0,0.00840505]
[1724274605451,0.02565917,61108.0,61099.0,0.163667]
[1724274605452,0.327311,61104.0,61099.0,0.163667]
[1724274605659,0.327311,61104.0,61087.0,0.03]
[1724274605660,0.163656,61104.0,61100.0,0.163664]
[1724274605866,0.163657,61104.0,61100.0,0.163664]
[1724274606073,0.18072165,61103.0,61099.0,0.163668]
[1724274606279,0.01706365,61103.0,61099.0,0.163668]
[1724274606485,0.01706365,61103.0,61100.0,0.163665]
[1724274607108,0.01706365,61103.0,61100.0,0.164665]
[1724274607307,0.01706365,61103.0,61100.0,0.163665]
[1724274607510,0.18072165,61103.0,61099.0,0.165668]
[1724274607715,0.01706365,61103.0,61100.0,0.165666]
[1724274608122,0.18072165,61103.0,61100.0,0.165666]
[1724274609794,0.18072165,61103.0,61100.0,0.002]
[1724274609976,0.163661,61102.0,61100.0,0.002]
[1724274610408,0.163661,61102.0,61100.0,0.004]
[1724274610615,0.163663,61101.0,61100.0,0.004]
[1724274610796,0.16366,61102.0,61100.0,0.004]
[1724274611374,0.18931808,61102.0,61100.0,0.002]
[1724274611737,0.18966106,61102.0,61084.0,0.327416]
[1724274611942,0.004092,61101.0,61076.0,0.009075]
[1724274612141,0.02565808,61102.0,61082.0,0.327428]
[1724274612453,0.02565808,61102.0,61083.0,3.05464971]
[1724274612660,0.18931808,61102.0,61100.0,0.004]
[1724274612882,0.163663,61101.0,61100.0,0.008]
[1724274613093,0.163663,61101.0,61098.0,0.16367]
[1724274613295,0.163663,61101.0,61095.0,0.327354]
[1724274613296,0.163663,61101.0,61097.0,0.163674]
[1724274614335,0.163663,61101.0,61098.0,0.16367]
[1724274614867,0.02565808,61102.0,61098.0,0.32734]
[1724274615070,0.02565808,61102.0,61100.0,0.003]
[1724274615512,0.02565808,61102.0,61100.0,0.163664]
[1724274615691,0.02565808,61102.0,61099.0,0.163667]
[1724274616518,0.02565808,61102.0,61100.0,0.004]
[1724274616960,0.02565808,61102.0,61101.0,0.163663]
[1724274617231,0.02565808,61102.0,61101.0,0.490989]
[1724274617433,0.02565808,61102.0,61101.0,0.818315]
[1724274617434,0.02539836,61102.0,61101.0,0.818315]
[1724274617646,0.02539836,61102.0,61101.0,1.145641]
[1724274618069,0.02539836,61102.0,61101.0,4.52679798]
[1724274618271,0.02539836,61102.0,61101.0,4.62779798]
[1724274618414,0.02539836,61102.0,61101.0,4.62979798]
[1724274618621,0.02539836,61102.0,61101.0,4.62679798]
[1724274619017,0.02539836,61102.0,61101.0,4.63579798]
[1724274619238,0.02539836,61102.0,61101.0,4.17696998]
[1724274619451,0.02539836,61102.0,61101.0,4.28596998]
[1724274619650,0.02539836,61102.0,61101.0,3.63996998]
[1724274619857,0.02539836,61102.0,61101.0,1.159315]
[1724274620102,0.02539836,61102.0,61101.0,1.173315]
[1724274620452,0.02539836,61102.0,61101.0,1.500641]
[1724274620652,0.02539836,61102.0,61101.0,1.66464398]
[1724274620854,0.02539836,61102.0,61101.0,1.65064398]
[1724274621051,0.02539836,61102.0,61101.0,1.66464398]
[1724274621254,0.02539836,61102.0,61101.0,1.65064398]
[1724274621898,0.02539836,61102.0,61101.0,1.159315]
[1724274622146,0.02539836,61102.0,61101.0,0.191663]
[1724274622476,0.02539836,61102.0,61101.0,0.177663]
[1724274622654,0.02539836,61102.0,61101.0,0.504989]
[1724274622862,0.02539836,61102.0,61101.0,0.518989]
[1724274623061,0.02539836,61102.0,61101.0,4.22747198]
[1724274623261,0.02539836,61102.0,61101.0,4.21347198]
[1724274623681,0.02539836,61102.0,61101.0,4.65479798]
[1724274624023,0.327217,61122.0,61115.0,0.163623]
[1724274624238,0.163616,61119.0,61115.0,0.163623]
[1724274624444,0.163619,61118.0,61112.0,0.163632]
[1724274624651,0.55783654,61123.0,61112.0,0.163632]
[1724274624652,0.065545,61123.0,61112.0,0.163632]
[1724274624820,0.327248,61116.0,61110.0,0.163636]
[1724274625026,0.163624,61116.0,61112.0,0.163633]
[1724274625188,0.327231,61119.0,61115.0,0.001]
[1724274625442,0.163622,61117.0,61115.0,0.001]
[1724274625841,0.163622,61117.0,61113.0,0.163631]
[1724274626622,0.16422827,61117.0,61113.0,0.163631]
[1724274626839,0.16322827,61117.0,61113.0,0.163631]
[1724274627265,0.16422827,61117.0,61113.0,0.163631]
[1724274627668,0.163624,61116.0,61113.0,0.163631]
[1724274627873,0.163624,61116.0,61111.0,0.163634]
[1724274627874,0.32725,61116.0,61111.0,0.163634]
[1724274628080,0.163629,61114.0,61108.0,0.327287]
[1724274628288,0.163629,61114.0,61110.0,0.163638]
[1724274629526,0.163629,61114.0,61110.0,0.165638]
[1724274630134,0.163629,61114.0,61110.0,0.167638]
[1724274630338,0.01706365,61113.0,61110.0,0.167638]
[1724274631255,0.01706365,61113.0,61110.0,0.165638]
[1724274631455,0.01706365,61113.0,61110.0,0.168638]
[1724274631891,0.01706365,61113.0,61110.0,0.166638]
[1724274632098,0.01706365,61113.0,61111.0,0.163636]
[1724274632507,0.01706365,61113.0,61112.0,0.818167]
[1724274633964,0.01706365,61113.0,61112.0,0.821167]
[1724274634785,0.01706365,61113.0,61112.0,0.824167]
[1724274634991,0.01706365,61113.0,61112.0,0.006]
[1724274635205,0.18069465,61113.0,61112.0,0.006]
[1724274636027,0.50795665,61113.0,61112.0,0.006]
[1724274636496,0.18069465,61113.0,61112.0,0.006]
[1724274637763,0.50795665,61113.0,61112.0,0.006]
[1724274637880,0.18069465,61113.0,61112.0,0.006]
[1724274638285,0.50795665,61113.0,61112.0,0.006]
[1724274639126,1.32948363,61113.0,61112.0,0.006]
[1724274639337,1.45248363,61113.0,61112.0,0.006]
[1724274639512,0.194,61110.0,61101.0,0.0009075]
[1724274639707,0.16366,61102.0,61101.0,0.0009075]
[1724274639940,0.818302,61102.0,61101.0,0.0009075]
[1724274641296,0.818302,61102.0,61101.0,0.0029075]
[1724274642283,0.818302,61102.0,61101.0,0.0039075]
[1724274642490,1.145623,61102.0,61101.0,0.0039075]
[1724274645697,1.16268665,61102.0,61101.0,0.0039075]
[1724274647190,0.83536565,61102.0,61101.0,0.0039075]
[1724274650838,0.50804465,61102.0,61101.0,0.0039075]
[1724274651035,0.18072365,61102.0,61101.0,0.0039075]
[1724274652323,0.50804465,61102.0,61101.0,0.0039075]
[1724274655224,0.83536565,61102.0,61101.0,0.0039075]
[1724274660020,0.50804465,61102.0,61101.0,0.0039075]
[1724274662977,0.02331859,61090.0,61089.0,0.163695]
[1724274663184,0.02331859,61090.0,61080.0,0.1]
[1724274663185,0.02331859,61090.0,61088.0,0.17190502]
[1724274664229,0.02331859,61090.0,61089.0,0.014]
[1724274665498,0.02331859,61090.0,61088.0,0.00820802]
[1724274665831,0.02331859,61090.0,61088.0,0.014]
[1724274666038,0.18701059,61090.0,61088.0,0.007]
[1724274666270,0.18701059,61090.0,61086.0,0.00811929]
[1724274666271,0.02331859,61090.0,61086.0,0.00811929]
[1724274666456,0.02331859,61090.0,61077.0,0.3621917]
[1724274666457,0.327417,61085.0,61077.0,0.009075]
[1724274666670,0.02331859,61090.0,61088.0,0.008]
[1724274666671,0.02431859,61090.0,61088.0,0.008]
[1724274666899,0.16778774,61089.0,61088.0,0.008]
[1724274667087,1.14996074,61089.0,61088.0,0.008]
[1724274667317,1.14996074,61089.0,61077.0,0.009075]
[1724274667318,0.00409274,61089.0,61077.0,0.009075]
[1724274667522,0.163724,61079.0,61077.0,0.009075]
[1724274668545,0.163724,61079.0,61077.0,0.016075]
[1724274668962,0.163724,61079.0,61077.0,0.009075]
[1724274669620,0.163724,61079.0,61077.0,0.017075]
[1724274669832,0.163724,61079.0,61077.0,0.025075]
[1724274670663,0.32744,61080.0,61077.0,0.025075]
[1724274670664,0.163725,61078.0,61077.0,0.025075]
[1724274670893,0.163722,61079.0,61077.0,0.025075]
[1724274671468,0.491175,61078.0,61077.0,0.025075]
[1724274671671,0.491175,61078.0,61077.0,0.017075]
[1724274671873,1.146075,61078.0,61077.0,0.009075]
[1724274672025,1.146075,61078.0,61077.0,0.027075]
[1724274672431,1.146075,61078.0,61077.0,0.009075]
[1724274672637,1.146075,61078.0,61077.0,0.011075]
[1724274673019,1.146075,61078.0,61077.0,0.009075]
[1724274673150,1.146075,61078.0,61077.0,0.012075]
[1724274673504,1.146075,61078.0,61077.0,0.011075]
[1724274673505,1.151075,61078.0,61077.0,0.011075]
[1724274673714,1.151075,61078.0,61076.0,0.009075]
[1724274673715,0.832637,61077.0,61076.0,0.009075]
[1724274675640,1.160092,61077.0,61076.0,0.009075]
[1724274676474,1.163092,61077.0,61076.0,0.009075]
[1724274676847,1.164092,61077.0,61076.0,0.009075]
[1724274677047,1.160092,61077.0,61076.0,0.009075]
[1724274677297,1.164092,61077.0,61076.0,0.009075]
[1724274677550,1.168092,61077.0,61076.0,0.009075]
[1724274677839,0.022,61077.0,61076.0,0.500265]
[1724274678261,0.022,61077.0,61076.0,0.827725]
[1724274678462,0.022,61077.0,61076.0,0.500265]
[1724274678669,0.018,61077.0,61076.0,0.500265]
[1724274678873,0.021,61077.0,61076.0,0.500265]
[1724274679075,0.03806365,61077.0,61076.0,0.49119]
[1724274679280,0.03406365,61077.0,61076.0,1.31011298]
[1724274679486,0.03106365,61077.0,61076.0,4.19994098]
[1724274679693,0.03106365,61077.0,61076.0,4.20694098]
[1724274679694,0.03406365,61077.0,61076.0,4.20694098]
[1724274679892,0.03506365,61077.0,61076.0,4.20694098]
[1724274680122,0.03506365,61077.0,61076.0,3.28111298]
[1724274680339,0.03506365,61077.0,61076.0,3.28811298]
[1724274681499,0.03506365,61077.0,61076.0,3.28902048]
[1724274684097,0.03506365,61077.0,61076.0,2.62702048]
[1724274685655,0.03506365,61077.0,61076.0,2.29956048]
[1724274685858,0.03506365,61077.0,61076.0,1.81356048]
[1724274688803,0.03506365,61077.0,61076.0,1.49856048]
[1724274691332,0.03506365,61077.0,61076.0,2.15448048]
[1724274691538,0.018,61077.0,61076.0,2.32611141]
[1724274691746,0.018,61077.0,61076.0,2.2462256]
[1724274691947,0.018,61077.0,61076.0,2.59813706]
[1724274692148,0.018,61077.0,61076.0,2.47587974]
[1724274692351,0.017,61077.0,61076.0,5.36070774]
[1724274692560,0.014,61077.0,61076.0,5.37670774]
[1724274692799,0.02331859,61090.0,61089.0,1.176868]
[1724274692994,0.02331859,61090.0,61089.0,1.76726198]
[1724274693195,0.02331859,61090.0,61089.0,4.65708998]
[1724274694019,0.02331859,61090.0,61089.0,4.16426198]
[1724274694649,0.02331859,61090.0,61089.0,4.16526198]
[1724274694854,0.02331859,61090.0,61089.0,4.16426198]
[1724274695261,0.02331859,61090.0,61089.0,4.17926198]
[1724274695776,0.02331859,61090.0,61089.0,4.19326198]
[1724274695995,0.02331859,61090.0,61089.0,4.19526198]
[1724274696616,0.02331859,61090.0,61089.0,4.20544489]
[1724274696947,0.02331859,61090.0,61089.0,4.53283589]
[1724274697123,0.02331859,61090.0,61089.0,4.58175024]
[1724274697324,0.02331859,61090.0,61089.0,4.53483589]
[1724274697727,0.02331859,61090.0,61089.0,4.52083589]
[1724274698107,0.02331859,61090.0,61089.0,4.53483589]
[1724274698487,0.02331859,61090.0,61089.0,4.56969617]
[1724274698868,0.02331859,61090.0,61089.0,4.58369617]
[1724274699227,0.02331859,61090.0,61089.0,4.56969617]
[1724274699429,0.02331859,61090.0,61089.0,4.56969479]
[1724274699629,0.02331859,61090.0,61089.0,4.53483589]
[1724274699900,0.02331859,61090.0,61089.0,4.52083589]
[1724274700106,0.02331859,61090.0,61089.0,4.55569479]
[1724274700306,0.02331859,61090.0,61089.0,4.52083589]
[1724274700458,0.02331859,61090.0,61089.0,4.58367934]
[1724274701098,0.02331859,61090.0,61089.0,4.53483589]
[1724274701488,0.02331859,61090.0,61089.0,4.55783589]
[1724274701862,5.9e-07,61090.0,61089.0,4.88522689]
[1724274702068,0.01706365,61108.0,61089.0,4.88522689]
[1724274702069,0.01706365,61108.0,61101.0,1.705967]
[1724274702273,0.194,61110.0,61101.0,1.705967]
[1724274702274,0.194,61110.0,61101.0,5.18712398]
[1724274702718,0.194,61110.0,61101.0,4.85779798]
[1724274703214,0.194,61110.0,61101.0,4.86179798]
[1724274703414,0.194,61110.0,61101.0,4.87579798]
[1724274703565,0.194,61110.0,61101.0,4.86179798]
[1724274703979,0.194,61110.0,61101.0,4.87179798]
[1724274704630,0.194,61110.0,61101.0,4.87379798]
[1724274704896,0.194,61110.0,61101.0,4.88779798]
[1724274705521,0.194,61110.0,61101.0,3.94046101]
[1724274705695,0.194,61110.0,61101.0,1.50663301]
[1724274706055,0.194,61110.0,61101.0,1.52063301]
[1724274706908,0.194,61110.0,61101.0,1.49263301]
[1724274707159,0.194,61110.0,61101.0,1.50563301]
[1724274707593,0.194,61110.0,61101.0,1.51963301]
[1724274708110,0.194,61110.0,61101.0,1.50563301]
[1724274708816,0.194,61110.0,61101.0,1.00563301]
[1724274709063,0.194,61110.0,61101.0,3.89546101]
[1724274709308,0.194,61110.0,61101.0,3.90846101]
[1724274710220,0.194,61110.0,61101.0,3.89546101]
[1724274710422,0.194,61110.0,61101.0,3.90846101]
[1724274710625,0.194,61110.0,61101.0,4.23578701]
[1724274711028,0.194,61110.0,61101.0,4.22278701]
[1724274711258,0.194,61110.0,61101.0,4.23678701]
[1724274711468,0.194,61110.0,61101.0,4.46678701]
[1724274711681,0.194,61110.0,61101.0,3.97395901]
[1724274711885,0.194,61110.0,61101.0,2.81795901]
[1724274712094,0.194,61110.0,61101.0,2.81895901]
[1724274712296,0.194,61110.0,61101.0,2.83295901]
[1724274712472,0.194,61110.0,61101.0,2.80295901]
[1724274712917,0.194,61110.0,61101.0,1.12063301]
[1724274713124,0.194,61110.0,61101.0,1.10663301]
[1724274713336,0.194,61110.0,61101.0,1.09263301]
[1724274713548,0.194,61110.0,61101.0,0.027]
[1724274713756,0.327292,61108.0,61101.0,0.014]
[1724274713936,0.163651,61106.0,61101.0,0.014]
[1724274714141,0.521283,61110.0,61101.0,0.028]
[1724274714142,0.00409127,61105.0,61101.0,0.028]
[1724274714344,0.00409127,61105.0,61101.0,0.014]
[1724274714546,0.194,61110.0,61101.0,0.014]
[1724274714547,0.163657,61104.0,61101.0,0.027]
[1724274714755,0.327293,61108.0,61101.0,0.027]
[1724274714756,0.163658,61103.0,61101.0,0.027]
[1724274715202,0.163658,61103.0,61096.0,0.163675]
[1724274715394,0.163655,61104.0,61097.0,0.163673]
[1724274715592,0.163655,61104.0,61101.0,0.013]
[1724274715801,0.163655,61104.0,61097.0,0.163673]
[1724274716215,0.163655,61104.0,61101.0,0.013]
[1724274716855,0.163642,61109.0,61101.0,0.163663]
[1724274717064,0.194,61110.0,61101.0,0.490989]
[1724274717065,0.357639,61110.0,61101.0,0.490989]
[1724274717449,0.163646,61108.0,61099.0,0.163666]
[1724274717696,0.163646,61108.0,61099.0,0.640666]
[1724274717897,0.163646,61108.0,61100.0,0.163665]
[1724274717898,0.01711443,61101.0,61100.0,0.163665]
[1724274718261,0.01711443,61101.0,61100.0,0.490997]
[1724274718416,0.01711443,61101.0,61100.0,3.380825]
[1724274719043,0.01711443,61101.0,61100.0,3.394825]
[1724274719241,0.01711443,61101.0,61100.0,3.88615998]
[1724274720205,0.01711443,61101.0,61100.0,3.72833198]
[1724274720375,0.01711443,61101.0,61100.0,2.90633198]
[1724274720582,0.01711443,61101.0,61100.0,2.53233198]
[1724274721249,0.01711443,61101.0,61100.0,2.85966398]
[1724274727790,0.01711443,61101.0,61100.0,2.58966398]
[1724274728524,0.01711443,61101.0,61100.0,2.57801648]
[1724274729341,0.01793943,61101.0,61100.0,2.57801648]
[1724274732251,0.01793943,61101.0,61100.0,2.49801648]
[1724274733822,0.01793943,61101.0,61100.0,4.21584448]
[1724274736144,0.01793943,61101.0,61100.0,3.13901648]
[1724274736526,0.01793943,61101.0,61100.0,3.07601648]
[1724274737349,0.01793943,61101.0,61100.0,2.68801648]
[1724274737544,0.01793943,61101.0,61100.0,2.64801648]
[1724274738141,0.01793943,61101.0,61100.0,2.45701648]
[1724274738340,0.01793943,61101.0,61100.0,2.00201648]
[1724274738559,0.01793943,61101.0,61100.0,1.95501648]
[1724274743432,0.01793943,61101.0,61100.0,2.36138659]
[1724274743771,0.01793943,61101.0,61100.0,2.41234848]
[1724274743902,0.01793943,61101.0,61100.0,2.84874294]
[1724274744313,0.01793943,61101.0,61100.0,2.48590564]
[1724274744494,0.01793943,61101.0,61100.0,2.41234848]
[1724274745352,0.01793943,61101.0,61100.0,2.05501648]
[1724274745588,0.01793943,61101.0,61100.0,1.42601648]
[1724274746105,0.01793943,61101.0,61100.0,1.42641052]
[1724274747242,0.01793943,61101.0,61100.0,1.42631052]
[1724274748169,0.01793943,61101.0,61100.0,1.09897852]
[1724274748568,0.01793943,61101.0,61100.0,1.09887852]
[1724274748766,0.01793943,61101.0,61100.0,0.99887852]
[1724274749428,0.01793943,61101.0,61100.0,4.21593852]
[1724274749786,0.01793943,61101.0,61100.0,4.21583852]
[1724274750255,0.01793943,61101.0,61100.0,4.21573852]
[1724274750500,0.01793943,61101.0,61100.0,2.35081052]
[1724274750823,0.01793943,61101.0,61100.0,2.35071052]
[1724274751047,0.01793943,61101.0,61100.0,2.35061052]
[1724274751495,0.01793943,61101.0,61100.0,2.35051052]
[1724274751862,0.01793943,61101.0,61100.0,2.35041052]
[1724274752250,0.01793943,61101.0,61100.0,2.35031052]
[1724274752646,0.01793943,61101.0,61100.0,2.35021052]
[1724274752850,0.01793943,61101.0,61100.0,2.35101802]
[1724274753064,0.01793943,61101.0,61100.0,2.40009445]
[1724274753263,0.01793943,61101.0,61100.0,2.39999445]
[1724274753498,0.01793943,61101.0,61100.0,2.39989445]
[1724274753938,0.01793943,61101.0,61100.0,2.42433267]
[1724274754440,0.01793943,61101.0,61100.0,2.42423267]
[1724274754612,0.01793943,61101.0,61100.0,2.42413267]
[1724274754843,0.01793943,61101.0,61100.0,2.42403267]
[1724274755250,0.01793943,61101.0,61100.0,2.71326444]
[1724274755452,0.01793943,61101.0,61100.0,3.11410198]
[1724274755665,0.01793943,61101.0,61100.0,2.78666998]
[1724274755870,0.01793943,61101.0,61100.0,2.71306444]
[1724274756044,0.01793943,61101.0,61100.0,3.04029644]
[1724274756421,0.01793943,61101.0,61100.0,2.71286444]
[1724274757841,0.01793943,61101.0,61100.0,3.17519644]
[1724274758041,0.000825,61101.0,61100.0,3.17519644]
[1724274758792,0.000825,61101.0,61100.0,3.16119644]
[1724274759117,0.000825,61101.0,61100.0,3.14714223]
[1724274759278,0.000825,61101.0,61100.0,3.16114223]
[1724274759672,0.000825,61101.0,61100.0,3.17514223]
[1724274760072,0.000825,61101.0,61100.0,3.16114223]
[1724274760301,0.000825,61101.0,61100.0,3.17114223]
[1724274760482,0.000825,61101.0,61100.0,3.17314223]
[1724274760680,0.000825,61101.0,61100.0,3.17514223]
[1724274760881,0.000825,61101.0,61100.0,3.16114223]
[1724274761083,0.000825,61101.0,61100.0,3.17514223]
[1724274761285,0.000825,61101.0,61100.0,3.50247423]
[1724274761565,0.000825,61101.0,61100.0,3.51147423]
[1724274761767,0.000825,61101.0,61100.0,3.49747423]
[1724274761916,0.000825,61101.0,61100.0,3.52547423]
[1724274762238,0.000825,61101.0,61100.0,4.78526687]
[1724274763393,1e-06,61101.0,61100.0,5.11259887]
[1724274763591,1e-06,61101.0,61100.0,5.44025465]
[1724274763803,0.000826,61102.0,61101.0,1.805293]
[1724274764037,0.000826,61102.0,61101.0,5.99984803]
[1724274764478,0.000826,61102.0,61101.0,5.34490883]
[1724274764818,0.000826,61102.0,61101.0,5.35890883]
[1724274765020,0.000826,61102.0,61101.0,5.37290883]
[1724274766690,0.000826,61102.0,61101.0,5.04058283]
[1724274766888,0.000826,61102.0,61101.0,5.01757378]
[1724274767396,0.000826,61102.0,61101.0,5.11557084]
[1724274769043,0.000826,61102.0,61101.0,5.01757378]
[1724274770259,0.000826,61102.0,61101.0,4.65479798]
[1724274771056,0.000826,61102.0,61101.0,1.22531798]
[1724274772207,0.000826,61102.0,61101.0,1.21131798]
[1724274772605,0.000826,61102.0,61101.0,1.20731798]
[1724274772818,0.000826,61102.0,61101.0,1.19331798]
[1724274773221,0.000826,61102.0,61101.0,1.20631798]
[1724274775367,0.000826,61102.0,61101.0,1.00831798]
[1724274776123,0.000826,61102.0,61101.0,0.99531798]
[1724274776526,0.000826,61102.0,61101.0,1.00922548]
[1724274777153,0.000826,61102.0,61101.0,0.99622548]
[1724274777555,0.000826,61102.0,61101.0,1.00922548]
[1724274777959,0.000826,61102.0,61101.0,0.0269075]
[1724274778221,0.000826,61102.0,61101.0,0.1905705]
[1724274778411,0.000826,61102.0,61101.0,0.0269075]
[1724274779830,0.000826,61102.0,61101.0,0.1905705]
[1724274784392,0.00043203,61102.0,61101.0,0.1905705]
[1724274784800,0.00043203,61102.0,61101.0,0.0269075]
[1724274785003,0.00043203,61102.0,61101.0,0.1905705]
[1724274788527,0.00043203,61102.0,61101.0,1.00922548]
[1724274789678,0.00043203,61102.0,61101.0,0.99922548]
[1724274789795,0.00043203,61102.0,61101.0,0.98922548]
[1724274790005,0.00043203,61102.0,61101.0,0.8252225]
[1724274790205,0.00043203,61102.0,61101.0,0.8152225]
[1724274790404,0.00043203,61102.0,61101.0,0.8052225]
[1724274790866,0.01,61101.0,61100.0,0.0009075]
[1724274791075,0.01,61101.0,61100.0,0.1645735]
[1724274791225,0.02,61101.0,61100.0,0.1645735]
[1724274791445,0.03,61101.0,61100.0,0.1645735]
[1724274792197,0.03,61101.0,61100.0,0.1785735]
[1724274792404,0.031,61101.0,61100.0,0.1915735]
[1724274793681,0.031,61101.0,61100.0,0.0279075]
[1724274795989,0.031,61101.0,61100.0,0.1915735]
[1724274797939,0.031,61101.0,61100.0,0.0279075]
[1724274798136,1.18073239,61101.0,61100.0,0.0279075]
[1724274798334,1.34064398,61101.0,61100.0,0.0279075]
[1724274798549,0.849315,61101.0,61100.0,0.0279075]
[1724274799172,0.031,61101.0,61100.0,0.0279075]
[1724274799380,0.03,61101.0,61100.0,0.0149075]
[1724274799583,0.520989,61101.0,61100.0,0.0149075]
[1724274799959,0.532989,61101.0,61100.0,0.0019075]
[1724274800167,0.533814,61101.0,61100.0,0.0019075]
[1724274800350,0.542814,61101.0,61100.0,0.0029075]
[1724274800542,0.533814,61101.0,61100.0,0.0019075]
[1724274800767,0.536814,61101.0,61100.0,0.0019075]
[1724274801793,0.524814,61101.0,61100.0,0.0009075]
[1724274802230,0.527814,61101.0,61100.0,0.0009075]
[1724274804198,0.200488,61101.0,61100.0,0.0009075]
[1724274804604,0.036825,61101.0,61100.0,0.0009075]
[1724274805000,0.200488,61101.0,61100.0,0.0009075]
[1724274805215,0.036825,61101.0,61100.0,0.0009075]
[1724274805967,0.033825,61101.0,61100.0,0.0009075]
[1724274806242,0.030825,61101.0,61100.0,0.0009075]
[1724274806542,0.034825,61101.0,61100.0,0.4919055]
[1724274806880,0.034825,61101.0,61100.0,0.163666]
[1724274807302,0.032825,61101.0,61100.0,0.163666]
[1724274807506,0.033825,61101.0,61100.0,0.163666]
[1724274808109,0.031825,61101.0,61100.0,0.163666]
[1724274808543,0.032825,61101.0,61100.0,0.163666]
[1724274811307,0.032825,61101.0,61099.0,0.327337]
[1724274811506,0.032825,61101.0,61100.0,0.0009075]
[1724274811684,0.032825,61101.0,61100.0,0.1645735]
[1724274812081,0.031825,61101.0,61100.0,0.4919055]
[1724274813005,0.032825,61101.0,61100.0,0.4919055]
[1724274813409,0.031825,61101.0,61100.0,0.4919055]
[1724274814604,0.032825,61101.0,61100.0,0.4919055]
[1724274816105,0.032825,61101.0,61100.0,0.65590848]
[1724274816307,0.032825,61101.0,61100.0,4.20040048]
[1724274816728,0.032825,61101.0,61100.0,2.90457248]
[1724274817331,0.032825,61101.0,61100.0,4.20040048]
[1724274817946,0.031825,61101.0,61100.0,4.20040048]
[1724274818152,0.030825,61101.0,61100.0,4.20040048]
[1724274818349,0.031825,61101.0,61100.0,4.20940048]
[1724274818983,0.030825,61101.0,61100.0,4.20040048]
[1724274819176,0.032825,61101.0,61100.0,4.22340048]
[1724274819503,0.001825,61101.0,61100.0,4.21440048]
[1724274819839,0.002825,61101.0,61100.0,4.22840048]
[1724274821321,0.002825,61101.0,61100.0,4.55573248]
[1724274822119,0.002825,61101.0,61100.0,3.04657248]
[1724274822330,0.002825,61101.0,61100.0,2.69057248]
[1724274822574,0.002825,61101.0,61100.0,1.62857248]
[1724274822703,0.002825,61101.0,61100.0,1.60257248]
[1724274822904,0.002825,61101.0,61100.0,0.0289075]
[1724274824273,0.001825,61101.0,61100.0,0.0149075]
[1724274824482,0.000825,61101.0,61100.0,0.0059075]
[1724274824775,0.000825,61101.0,61100.0,0.0099075]
[1724274825342,1.35408571,61101.0,61100.0,0.0099075]
[1724274825549,1.31346898,61101.0,61100.0,0.0099075]
[1724274825750,1.41290692,61101.0,61100.0,0.0099075]
[1724274825950,1.41290692,61101.0,61100.0,0.0059075]
[1724274826186,1.41290692,61101.0,61100.0,0.0099075]
[1724274826583,1.41390692,61101.0,61100.0,0.0049075]
[1724274826985,1.42590692,61101.0,61100.0,0.0059075]
[1724274827371,1.42790692,61101.0,61100.0,0.0059075]
[1724274827548,1.6628633,61101.0,61100.0,0.0059075]
[1724274827722,1.45090692,61101.0,61100.0,0.0019075]
[1724274827939,1.46290692,61101.0,61100.0,0.0029075]
[1724274828496,1.46290692,61101.0,61100.0,0.0019075]
[1724274828497,1.49945023,61101.0,61100.0,0.0019075]
[1724274828722,1.46145023,61101.0,61100.0,0.0009075]
[1724274828919,0.83114,61101.0,61100.0,0.0019075]
[1724274829069,0.84314,61101.0,61100.0,0.0029075]
[1724274830554,0.83114,61101.0,61100.0,0.0019075]
[1724274830777,0.84314,61101.0,61100.0,0.0029075]
[1724274831199,0.83114,61101.0,61100.0,0.0019075]
[1724274831622,0.84314,61101.0,61100.0,0.0029075]
[1724274832924,1.170466,61101.0,61100.0,0.0029075]
[1724274833495,1.158466,61101.0,61100.0,0.0019075]
[1724274833726,1.158466,61101.0,61100.0,0.0009075]
[1724274833934,1.156466,61101.0,61100.0,0.0019075]
[1724274834132,1.33146898,61101.0,61100.0,0.0029075]
[1724274834337,1.49571961,61101.0,61100.0,0.0029075]
[1724274834595,1.82504561,61101.0,61100.0,0.0029075]
[1724274835037,1.82204561,61101.0,61100.0,0.0029075]
[1724274835240,1.92449048,61101.0,61100.0,0.0029075]
[1724274835394,1.92749048,61101.0,61100.0,0.0029075]
[1724274835591,1.82504561,61101.0,61100.0,0.0029075]
[1724274835991,1.82704561,61101.0,61100.0,0.0029075]
[1724274836972,1.92949448,61101.0,61100.0,0.0029075]
[1724274837379,2.21699448,61101.0,61100.0,0.0029075]